Cogmind - Beta 17 @@@ ROGUE MODE // 2026.08.05 @ 21:19:48 Player: Retknock Result: Destroyed by 68-8U7(R) with Subdweller Beam Cannon Performance ------------- Evolutions (0) 0 Regions Visited (2) 400 Robots Destroyed (35) 175 Value Destroyed (494) 494 Prototype IDs (17) 340 Alien Tech Used (0) 0 Bonus (0) 0 TOTAL SCORE: 1409 Bonus ------- None Cogmind --------- Core Integrity 0/250 Matter 300/300 Energy 240/240 System Corruption 0% Temperature Cool (9) Movement Treading (152) Location -10/Subcaves Parts ------- > --- POWER (1) -------- Nuclear Core (fused) > --- PROPULSION (2) --- Advanced Treads (fused) Medium Treads (fused) > --- UTILITY (2) ------ Medium Storage Unit Self-contained Transmogrifier > --- WEAPON (2) ------- Medium Laser Improved Remote Datajack (fused) > --- INVENTORY (10) --- Subdweller Power Source Spiked Treads Cargo Legs Subdweller Monowheel Subdweller Monowheel Structural Scanner Makeshift Light Armor Plating V3-11A's Pendant Peak State ------------ > --- POWER ------------ Nuclear Core > --- PROPULSION ------- Advanced Treads Medium Treads > --- UTILITY ---------- Medium Storage Unit Self-contained Transmogrifier > --- WEAPON ----------- Heavy Proton Cannon Improved Remote Datajack > --- INVENTORY -------- Subdweller Power Source Spiked Treads Cargo Legs Subdweller Monowheel Subdweller Monowheel Structural Scanner Makeshift Light Armor Plating V3-11A's Pendant Medium Laser [Rating: 36] Favorites ----------- Power Light Ion Engine Engine Light Ion Engine Power Core Nuclear Core Propulsion Light Treads Treads Light Treads Utility Medium Storage Unit Device Seismic Detector Storage Medium Storage Unit Protection Makeshift Light Armor Plating Weapon Shotgun Energy Gun EM Pulse Gun Energy Cannon Neutron Cannon Ballistic Gun Shotgun Ballistic Cannon Slug Cannon Special Weapon Improved Remote Datajack Build | -11 -10 -10 ------- Run | Yrd Mat Sub Slots Evolved . | . . . Power . | . . . Propulsion . | . . . Utility . | . . . Weapon . | . . . Parts Attached 23 | 7 9 7 Power 6 | 1 2 3 Engine 6 | 1 2 3 Core . | . . . Reactor . | . . . Propulsion 4 | 2 2 . Treads 4 | 2 2 . Leg . | . . . Wheel . | . . . Hover . | . . . Flight . | . . . Utility 5 | 2 1 2 Device 2 | 1 . 1 Storage 2 | 1 1 . Processor . | . . . Hackware . | . . . Protection 1 | . . 1 Artifact . | . . . Weapon 8 | 2 4 2 Energy Gun 2 | 1 . 1 Energy Cannon . | . . . Ballistic Gun 5 | 1 4 . Ballistic Cannon 1 | . . 1 Launcher . | . . . Special Weapon . | . . . Impact Weapon . | . . . Slashing Weapon . | . . . Piercing Weapon . | . . . Special Melee Weapon . | . . . Unidentified Prototypes 1 | . . 1 Parts Lost 2 | . 1 1 Power 1 | . 1 . Propulsion . | . . . Utility . | . . . Weapon 1 | . . 1 Highest Loss Streak 1 | . 1 1 To Critical Strikes . | . . . Average Backups 8 | 2 8 9 Power . | . 1 . Propulsion 3 | 1 2 3 Utility 3 | . 2 3 Weapon 1 | . 1 . Tool/Special . | . . . Unused Backups 14 | . . 14 Power 1 | . . 1 Propulsion 8 | . . 8 Utility 4 | . . 4 Weapon 1 | . . 1 Tool/Special . | . . . Average Slot Usage (%) 99 | . 99 99 Engine 11 | . 13 9 Core 2 | . . 4 Treads 28 | . 28 28 Device 11 | . 14 10 Storage 14 | . 14 14 Protection 2 | . . 3 Energy Cannon 7 | . . 12 Ballistic Gun 14 | . 27 5 Ballistic Cannon 2 | . . 4 Special Weapon 2 | . . 4 Peak Build Rating 36 | 7 10 36 Average Rating 19 | 5 9 26 On Entrance 5 | . 7 10 Avg Prop Armor Cover (%) . | . . . Naked Turns . | . . . Heaviest Build 39 | 12 20 39 Greatest Support 50 | 40 40 50 Greatest Overweight (x) . | . . . Average Overweight (x) . | . . . Largest Inventory Capacity 10 | 8 10 10 Average Capacity 9 | 7 8 10 Most Carried 10 | 5 10 10 Average Carried 8 | 3 8 9 Final Capacity 10 | 8 10 10 Final Carried 10 | 3 10 9 Transmogrified Parts 14 | . . 14 Integrity Recovered 267 | . . 267 Class Distribution -------------------- 100% | Mutant Dominant Class ---------------- Mutant | -10/Materials Mutant | -10/Subcaves Resources | -11 -10 -10 ----------- Run | Yrd Mat Sub Matter Collected 958 | 249 509 200 Remotely . | . . . Salvage Created 874 | 77 535 262 Parts 59 | 6 37 16 Haulers Intercepted 2 | . 2 . Recyclers Shooed 2 | . 2 . Parts Field Recycled . | . . . Retrieved Matter . | . . . Parts Self-Destructed 7 | . . 7 Prevented . | . . . Parts Restored . | . . . Kills | -11 -10 -10 ------- Run | Yrd Mat Sub Combat Hostiles Destroyed 20 | . 11 9 Guns 11 | . 11 . Cannons 7 | . . 7 AOE 1 | . . 1 Classes Destroyed 9 | 2 6 1 Worker 5 | . 5 . Tunneler 2 | 1 1 . Hauler 2 | . 2 . Recycler 2 | 1 1 . Mechanic 1 | . 1 . Watcher 3 | . 3 . Swarmer 13 | . 9 4 Grunt 2 | . 2 . Subdweller 5 | . . 5 Best Kill Streak 7 | 1 7 3 Combat Bots Only 5 | . 5 3 Max Kills in Single Turn 2 | 1 2 1 Gunslinging . | . . . Exploded 1 | . . 1 Melee . | . . . Uniques/NPCs Destroyed . | . . . Combat | -11 -10 -10 -------- Run | Yrd Mat Sub Hostile Shots Fired 132 | . 74 58 Missed 36 | . 19 17 Hits 96 | . 55 41 Projectile 96 | . 55 41 Critical Strikes 1 | . . 1 Damage Taken 1316 | . 464 852 Core 253 | . 53 200 Absorbed by Shields . | . . . Core Remaining (%) 100 | 100 . . Volleys Fired 99 | 7 50 42 Largest 2 | 2 2 2 Hottest 175 | 60 46 175 Shots Fired 188 | 14 100 74 Gun 129 | 14 100 15 Cannon 59 | . . 59 Launcher . | . . . Special . | . . . Kinetic 131 | 7 100 24 Thermal 37 | . . 37 Explosive . | . . . Electromagnetic 20 | 7 . 13 Robot Hit Streak 14 | 4 7 14 Robot Miss Streak 9 | 2 9 2 Penetration Max . | . . . Secondary Targets 1 | . 1 . Max Gunslinging Chain 1 | . 1 . Shots Hit Robots 98 | 9 62 27 Core Hits 48 | 4 35 9 Critical Kills 1 | . 1 . Critical Parts Destroyed . | . . . Critical Strikes 1 | . 1 . Destroy 1 | . 1 . Melee Attacks . | . . . Impact . | . . . Slashing . | . . . Piercing . | . . . Sneak Attacks . | . . . Combat Hostiles . | . . . Follow-up Attacks . | . . . Damage Inflicted 1827 | 91 888 848 Guns 1069 | 91 886 92 Cannons 731 | . . 731 Explosions 25 | . . 25 Melee . | . . . Ramming 2 | . 2 . Kinetic 1080 | 51 886 143 Thermal 579 | . . 579 Explosive . | . . . Electromagnetic 166 | 40 . 126 Impact . | . . . Slashing . | . . . Piercing . | . . . Highest Corruption . | . . . Average Corruption . | . . . Corruption Purged . | . . . Corruption Blocked . | . . . Overload Shots . | . . . Overflow Damage 12 | . . 12 Projectiles 12 | . . 12 Explosions . | . . . Melee . | . . . Knockbacks 1 | . . 1 Impact . | . . . Kinetic 1 | . . 1 Secondary . | . . . Self-Inflicted Damage 11 | . . 11 Shots 1 | . . 1 Rammed 1 | . 1 . Targets Rammed 1 | . 1 . Kicked . | . . . Crushed . | . . . Highest Temperature 270 | 20 1 270 Average Temperature 67 | 14 1 77 Received Heat Transfer 228 | . 54 174 Siege Activations . | . . . Martial Activations . | . . . Shielding Activations . | . . . Robots Disrupted . | . . . Combat Hostiles . | . . . Robots Corrupted 1 | . . 1 Combat Hostiles 1 | . . 1 Parts Fried 1 | . . 1 Impact Corruptions . | . . . Robots Melted . | . . . Combat Hostiles . | . . . Parts Melted 1 | . . 1 Heat Transferred 420 | . . 420 Parts Sabotaged . | . . . Parts Stolen . | . . . Parts Stripped . | . . . Power Chain Reactions 1 | . . 1 Alert | -11 -10 -10 ------- Run | Yrd Mat Sub Maximum Alert Level . | . . . Low Security (%) 100 | 100 100 . Level 1 . | . . . Level 2 . | . . . Level 3 . | . . . Level 4 . | . . . Level 5 . | . . . High Security . | . . . Max Security . | . . . Peak Influence 150 | 5 150 . Initial . | . . . Average 50 | 1 54 . Influence Increases 489 | 10 389 90 Destroy 0b10 Robot/C 300 | . 220 80 Destroy 0b10 Robot/NC 75 | 10 65 . Destroy Leader 70 | . 60 10 Successful Hack 14 | . 14 . Lose Combat Pursuer 30 | . 30 . Influence Decreases 489 | 10 301 178 Entered New Map 43 | . . 43 Time Decay 436 | 10 291 135 Lost Part 10 | . 10 . Squads Dispatched 2 | . 2 . Investigation 1 | . 1 . Extermination . | . . . Reinforcement 1 | . 1 . Assault . | . . . Garrison . | . . . Intercept . | . . . Searches Triggered . | . . . Construction Impeded . | . . . Haulers Reinforced . | . . . Active Scanning Responses . | . . . Cargo Convoy Interrupts . | . . . Stealth | -11 -10 -10 --------- Run | Yrd Mat Sub Distress Signals . | . . . Communications Jammed . | . . . Distress Signals . | . . . Times Spotted 31 | . 20 11 Peak Tracking Total 4 | . 4 3 Tactical Retreats 1 | . 1 . Traps | -11 -10 -10 ------- Run | Yrd Mat Sub Traps Triggered 3 | . 1 2 Indirectly . | . . . Trap Hack Attempts . | . . . Triggered . | . . . Disarmed . | . . . Reprogrammed . | . . . Reused . | . . . Traps Extracted . | . . . Installed . | . . . Triggered . | . . . Machines | -11 -10 -10 ---------- Run | Yrd Mat Sub Machines Disabled 1 | . . 1 Max in Single Turn 1 | . . 1 Machines Repaired . | . . . Machines Dismantled . | . . . Machines Sabotaged . | . . . Overloaded Fab Kills . | . . . Hacking | -11 -10 -10 --------- Run | Yrd Mat Sub Machines Accessed 6 | . 4 2 Terminals 3 | . 3 . Fabricators . | . . . Repair Stations . | . . . Recycling Units 1 | . 1 . Scanalyzers . | . . . Garrison Access . | . . . Total Hacks 23 | . 10 13 Successful 20 | . 7 13 Failed 3 | . 3 . Catastrophic 1 | . 1 . Database Lockouts . | . . . Manual 6 | . 5 1 Terminals 9 | . 9 . Fabricators . | . . . Repair Stations . | . . . Recycling Units 1 | . 1 . Scanalyzers . | . . . Garrison Access . | . . . Terminal Hacks 19 | . 6 13 Record 13 | . 1 12 Alert Level 1 | . 1 . Locate Traps 2 | . 2 . Hauler Manifests 1 | . 1 . Zone Layout 1 | . 1 . Proto ID Catalog 1 | . . 1 Fabricator Hacks . | . . . Repair Station Hacks . | . . . Recycling Unit Hacks 1 | . 1 . Process 1 | . 1 . Scanalyzer . | . . . Garrison Access Hacks . | . . . Unauthorized Hacks . | . . . Terminals . | . . . Fabricators . | . . . Repair Stations . | . . . Recycling Units . | . . . Scanalyzers . | . . . Garrison Access . | . . . Data Cores Recovered . | . . . Used . | . . . Hacking Detections 3 | . 3 . Full Trace Events 2 | . 2 . Feedback Events . | . . . Feedback Blocked . | . . . Robot Schematics Acquired . | . . . Robots Built . | . . . Authchips . | . . . Time . | . . . Total Robot Build Rating . | . . . Part Schematics Acquired . | . . . Parts Built . | . . . Authchips . | . . . Time . | . . . Total Part Build Rating . | . . . Part Studies Acquired . | . . . Parts Repaired . | . . . Time . | . . . Parts Recycled . | . . . Recycled Matter . | . . . Retrieved Matter . | . . . Retrieved Components . | . . . Parts Scanalyzed . | . . . Part Schematics Acquired . | . . . Parts Damaged . | . . . Bothacking | -11 -10 -10 ------------ Run | Yrd Mat Sub Used RIF Installer . | . . . Robots Hacked . | . . . Non-combat . | . . . Combat . | . . . Robot Hacks Applied . | . . . Relay Couplers Released . | . . . Fabnet Peak Effective % . | . . . Robots Rewired . | . . . Allies Hacked . | . . . Hacks Repelled . | . . . Allies | -11 -10 -10 -------- Run | Yrd Mat Sub Total Allies . | . . . Largest Group . | . . . Highest-Rated Group . | . . . Highest-Rated Ally . | . . . Total Orders . | . . . Ally Attacks . | . . . Total Damage . | . . . Kills . | . . . Allies Corrupted . | . . . Allies Melted . | . . . Intel | -11 -10 -10 ------- Run | Yrd Mat Sub Active Infowar (turns) 1565 | 79 1443 43 Seismic 1565 | 79 1443 43 Robot Analysis Total . | . . . Derelict Logs Recovered . | . . . Drone Launches . | . . . Drone Recoveries . | . . . Exploration | -11 -10 -10 ------------- Run | Yrd Mat Sub Turns Passed 3529 | 124 1443 1962 Spaces Moved 1918 | 68 726 1124 Core 17 | 17 . . Treads 1901 | 51 726 1124 Legs . | . . . Wheels . | . . . Hover . | . . . Flight . | . . . Fastest Speed 50 | 50 160 152 Average Speed 157 | 132 160 157 Slowest Speed 160 | 160 160 160 Overloaded Moves . | . . . Propulsion Burnouts . | . . . Robots Hopped . | . . . Potential Cave-ins . | . . . Cave-ins Triggered . | . . . Exploration Rate (%) 50 | 3 89 59 Regions Visited 2 Branch Regions 1 Pre-discovered Areas 2 | . . 2 Known Exits Taken . | . . . Unknown Exits Taken 2 | 1 1 . Scrap Searched . | . . . Spaces Dug 3 | . . 3 Terrain Destroyed 14 | . . 14 Melee . | . . . Projectile 11 | . . 11 AOE 3 | . . 3 Terrain Rammed . | . . . Walls Destroyed . | . . . Machines Disabled . | . . . Actions | -11 -10 -10 --------- Run | Yrd Mat Sub Total 2239 | 88 910 1241 Wait 150 | . 105 45 Move 1916 | 67 725 1124 Hop . | . . . Pick Up 27 | 7 12 8 Fast Attach 5 | 3 . 2 Attach 10 | 4 3 3 Detach 1 | . . 1 Swap 9 | . 6 3 Drop 21 | . 8 13 Fire 99 | 7 50 42 Melee . | . . . Ram . | . . . Kick . | . . . Crush 1 | . 1 . Escape Stasis . | . . . Rewire . | . . . Trap . | . . . Miscellaneous . | . . . Route ------- -11/Scrapyard -10/Materials (discovered 5 exits: [*Mat x3] / [*Min] / *Sub) -10/Subcaves (discovered 4 exits: *Mat x2 / Rec / [*Scr]) History --------- Turn | Location | Event 12 | -11/Scrapyard | Discovered new exit (range 16) 125 | -11/Scrapyard | Entered Materials 314 | -10/Materials | Build established: Mutant 662 | -10/Materials | Discovered new exit (range 4) 848 | -10/Materials | Discovered new exit (range 9) 981 | -10/Materials | Discovered new exit (range 10) 1158 | -10/Materials | Discovered new exit (range 16) 1547 | -10/Materials | Discovered new exit (range 9) 1568 | -10/Materials | Entered Subcaves 1569 | -10/Subcaves | Shifting Twisted Machinery released Slug Cannon 1569 | -10/Subcaves | Approached by a straggling Scientist 1595 | -10/Subcaves | Shifting Twisted Machinery released Mak. Light Armor Plating 1630 | -10/Subcaves | Visited triangular shrine 1640 | -10/Subcaves | Found Prototype Device 1763 | -10/Subcaves | Discovered new exit (range 13) 2089 | -10/Subcaves | Visited 4L-MR0's lab 2100 | -10/Subcaves | Found Prototype Device 2135 | -10/Subcaves | Identified Sfc. Transmogrifier 2142 | -10/Subcaves | Found Cargo Legs 2389 | -10/Subcaves | Shifting Twisted Machinery released Sub. Power Source 2392 | -10/Subcaves | Shifting Twisted Machinery released Sub. Laser 2395 | -10/Subcaves | Learned location of Zion (-7) 2395 | -10/Subcaves | Met a Zionite searching for "candidates" 2607 | -10/Subcaves | Visited Clippyterm 2611 | -10/Subcaves | Identified exit to Materials 2611 | -10/Subcaves | Identified exit to Recycling 2611 | -10/Subcaves | Learned location of Deep Caves (-7) 2815 | -10/Subcaves | Shifting Twisted Machinery released Sub. Beam Cannon 2941 | -10/Subcaves | Shifting Twisted Machinery released Sub. Shrapnel Launcher 3355 | -10/Subcaves | Core integrity fell below 50% 3509 | -10/Subcaves | Core integrity fell below 20% 3530 | -10/Subcaves | Destroyed by 68-8U7(R) with Subdweller Beam Cannon Last Messages --------------- Cannon into Imp. Remote Datajack. Sub. Shrapnel Launcher falls loose from the Twisted Machinery. 02963_ Triggered Piercing Trap. 02963_ Spikes shoot up from the floor. 02963_ Critical hit (Impale). 02966_ Triggered Piercing Trap. 02966_ Spikes shoot up from the floor. 02966_ Critical hit (Impale). 02996_ Sfc. Transmogrifier converts Spk. Treads into Arm. Treads. 03164_ Sfc. Transmogrifier converts Lgt. Nuclear Core into Nuclear Core. 03350_ Sfc. Transmogrifier converts Arm. Treads into Med. Treads. 03367_ BU-L6O(R) misfires. 03368_ BU-L6O(R) system terminally corrupted. 03368_ Sub. Power Source fried. 03439_ Hvy. Proton Cannon destroyed. 03475_ Acquired 10 matter. Map ----- +----------------------------------------------------+ | ?#"X #?????????????????????????? | | ?#"" ## #??????????????????????????? | | ?#"""### #??????????????????????????? | | ?###### #??????????????????????????? | | ??????## ## #?????????????????????????? | | ??????## ## ???????????????????????????? | | ?????## ### #??????????????????????????? | | ?????# #?# ###????????????????????????????? | | ?????# ## ###????????????????????????????# | | ?????## ##???????????????????????????# | | ?????## ??????????????????????# | | ????## ??????????????????????# | | ##??# ## ??????????????????????? | | ##### ##???? ??????????????????????? | | ## ##????? ??????????????????????? | | ## ####?????? ??????????????????????? | | ### ##?????????? ??????????????????????? | | ### #??????????? ????##????????????????? | | ## #######?????# ##??# #????????????????? | | ## #?????# ??# #????????????????? | | #?## ##????## #?# #????????????????? | | ##??## ##?????? ## #????????????####?? | | ###??# ######### #?##???????#### #?? | | = #### ## ;""# < ## #???##### ### ##? | | ## R """" ## #??## ## ## | | ### ] @ #?# #?## ## | | # ##### # ## " ### #?# ## | | # ## # " ""## ## ### #### | | ### % ""## # "### #??## ## | | ## "" ### " # #???######? | | # # ;##"" #" """ " ########??? | | ########## "#"]"""""" ## #??? | | #??????# ###" "" ## # ## | | #??????# "" ### ""#### ^ | | ### #??????##""" "## ""#?# | | ??## #???????##""" "" "#?##### #### ## | | ???# ## #????????##"##"" "#?????######??#??? | | ???##########?????????###?#""""##????????????????? | | ???????????????????????????#####?????????????????? | | ?????????????????????????????????????????????????? | | ?????????????????????????????????????????????????? | | ?????????????????????????????????????????????????? | | ?????????????????????????????????????????????????? | | ?????????????????????????????????????????????????? | | ?????????????????????????????????????????????????? | | ?????????????????????????????????????????????????? | | ?????????????????????????????????????????????????? | | ?????????????????????????????????????????????????? | | ?????????????????????????????????????????????????? | | ?????????????????????????????????????????????????? | +----------------------------------------------------+ Best States ------------- Heat Dissipation 25 Energy Generation 15 Energy Capacity 265 Matter Stores 300 Matter Capacity 300 Sight Range 16 Terrain Scan Density 10 Armor Coverage 100 Evasion (%) 50 Recoil Reduction 2 Item Schematics ----------------- None Robot Schematics ------------------ None Fabricated ------------ Nothing Repaired ---------- Nothing Studied --------- None Alien Tech Used ----------------- None Achievements -------------- Mistaken Identity Challenges ------------ None Game ------ Seed BoreMatterMatterbank Manual? 0 Play Time 00:45:39 Cumulative 11.5 hours Start 2026.08.05 @ 16:24:58 End 2026.08.05 @ 21:19:48 Sessions 5 Manual Loads 0 Difficulty Rogue Special Mode None Game No. 14 Rogue 14 Adventurer 0 Explorer 0 Win Type - Total 0 Types 0/0/0/0/0/0/0/0/0/0 Lore% 8 Gallery% 13 Achievement% 10 Wizard Run 0 Options --------- Layout 2 ASCII 0 Keyboard 0 Movement Mouse Keybinds 0 Fullscreen 1 Font 24/Smallcaps Map View 50x44 Zoom Use 2% Tactical HUD 1 Map Filters NONE Filters NONE Steam 1 RUN: 77483d62-2c87-4c38-8ab5-eb7bc731a26b